Cogmind - Beta 9.6 @@@ ROGUE MODE // 2020.05.21 @ 20:17:18 Player: Overmind Result: Destroyed by D-53 Grenadier with Mini Grenade Launcher Performance ------------- Evolutions (0) 0 Regions Visited (2) 400 Robots Destroyed (14) 70 Value Destroyed (298) 298 Prototype IDs (0) 0 Alien Tech Used (0) 0 Bonus (0) 0 TOTAL SCORE: 768 Bonus ------- None Cogmind --------- Core Integrity 0/250 Matter 300/300 Energy 100/100 System Corruption 0% Temperature Cool (0) Movement Walking (120) Location -10/Mines Parts ------- > --- POWER (1) -------- (None) > --- PROPULSION (2) --- Aluminum Leg Aluminum Leg > --- UTILITY (2) ------ Medium Storage Unit Propulsion Shielding > --- WEAPON (2) ------- Assault Rifle Heavy Hammer > --- INVENTORY (8) ---- Ion Engine Hover Unit Peak State ------------ > --- POWER ------------ Light Ion Engine > --- PROPULSION ------- Aluminum Leg Aluminum Leg > --- UTILITY ---------- Shield Generator > --- WEAPON ----------- Assault Rifle Heavy Hammer > --- INVENTORY -------- Assault Rifle [Rating: 8] Favorites ----------- Power Light Ion Engine Engine Light Ion Engine Propulsion Aluminum Leg Leg Aluminum Leg Utility Shield Generator Device Shield Generator Storage Medium Storage Unit Protection Propulsion Shielding Weapon Assault Rifle Ballistic Gun Assault Rifle Impact Weapon Heavy Hammer Build | -11 -10 -10 ------- Run | Scr Mat Min Slots Evolved . | . . . Power . | . . . Propulsion . | . . . Utility . | . . . Weapon . | . . . Parts Attached 14 | 5 9 . Power 2 | 1 1 . Engine 2 | 1 1 . Core . | . . . Reactor . | . . . Propulsion 5 | 2 3 . Treads . | . . . Leg 5 | 2 3 . Wheel . | . . . Hover . | . . . Flight . | . . . Utility 3 | . 3 . Device 1 | . 1 . Storage 1 | . 1 . Processor . | . . . Hackware . | . . . Protection 1 | . 1 . Artifact . | . . . Weapon 4 | 2 2 . Energy Gun . | . . . Energy Cannon . | . . . Ballistic Gun 3 | 2 1 . Ballistic Cannon . | . . . Launcher . | . . . Special Weapon . | . . . Impact Weapon 1 | . 1 . Slashing Weapon . | . . . Piercing Weapon . | . . . Special Melee Weapon . | . . . Unidentified Prototypes . | . . . Parts Lost 3 | . 2 1 Power 2 | . 1 1 Propulsion . | . . . Utility 1 | . 1 . Weapon . | . . . Highest Loss Streak 1 | . 1 1 Average Slot Usage (%) 87 | . 84 99 Engine 13 | . 13 13 Leg 28 | . 28 28 Device 8 | . 9 . Storage 3 | . 1 14 Protection 4 | . 2 14 Ballistic Gun 15 | . 15 14 Impact Weapon 12 | . 12 14 Naked Turns . | . . . Heaviest Build 17 | 7 17 17 Greatest Support 20 | 20 20 20 Greatest Overweight (x) 2 | 2 . . Average Overweight (x) . | . . . Largest Inventory Capacity 8 | 4 8 8 Average Capacity 5 | 4 4 8 Most Carried 4 | 3 4 2 Average Carried 2 | . 2 2 Final Capacity 8 | 4 8 8 Final Carried 2 | . 2 2 Class Distribution -------------------- 76% | Mutant 23% | Scavenger-Mutant Dominant Class ---------------- Mutant | -10/Materials Scavenger-Mutant | -10/Mines Resources | -11 -10 -10 ----------- Run | Scr Mat Min Matter Collected 394 | 182 212 . Remotely . | . . . Salvage Created 436 | . 436 . Parts 20 | . 20 . Haulers Intercepted 1 | . 1 . Recyclers Shooed . | . . . Parts Field Recycled . | . . . Retrieved Matter . | . . . Parts Self-Destructed . | . . . Prevented . | . . . Kills | -11 -10 -10 ------- Run | Scr Mat Min Combat Hostiles Destroyed 9 | . 9 . Melee 5 | . 5 . Guns 2 | . 2 . Classes Destroyed 7 | . 7 . Worker 1 | . 1 . Builder 1 | . 1 . Hauler 1 | . 1 . Operator 1 | . 1 . Watcher 1 | . 1 . Swarmer 2 | . 2 . Grunt 7 | . 7 . Best Kill Streak 3 | . 3 . Combat Bots Only 2 | . 2 . Max Kills in Single Turn 1 | . 1 . Gunslinging . | . . . Exploded . | . . . Melee 1 | . 1 . Uniques/NPCs Destroyed . | . . . Combat | -11 -10 -10 -------- Run | Scr Mat Min Damage Taken 754 | . 501 253 Core 259 | . 90 169 Absorbed by Shields 127 | . 127 . Core Remaining (%) 100 | 100 . . Volleys Fired 14 | . 14 . Largest 2 | . 2 . Hottest 40 | . 40 . Shots Fired 23 | . 23 . Gun 23 | . 23 . Cannon . | . . . Launcher . | . . . Special . | . . . Kinetic 23 | . 23 . Thermal . | . . . Explosive . | . . . Electromagnetic . | . . . Robot Hit Streak 7 | . 7 . Robot Miss Streak 2 | . 2 . Penetration Max . | . . . Secondary Targets . | . . . Shots Hit Robots 44 | . 42 2 Core Hits 9 | . 8 1 Critical Hits . | . . . Critical Kills . | . . . Critical Parts Destroyed . | . . . Melee Attacks 42 | . 40 2 Impact 42 | . 40 2 Slashing . | . . . Piercing . | . . . Sneak Attacks 7 | . 7 . Combat Hostiles . | . . . Follow-up Attacks . | . . . Damage Inflicted 1282 | . 1249 33 Guns 191 | . 191 . Cannons . | . . . Explosions . | . . . Melee 1091 | . 1058 33 Ramming . | . . . Kinetic 191 | . 191 . Thermal . | . . . Explosive . | . . . Electromagnetic . | . . . Impact 1091 | . 1058 33 Slashing . | . . . Piercing . | . . . Highest Corruption . | . . . Average Corruption . | . . . Corruption Purged . | . . . Overload Shots . | . . . Overflow Damage 218 | . 218 . Projectiles 20 | . 20 . Explosions . | . . . Melee 198 | . 198 . Knockbacks 10 | . 10 . Impact 9 | . 9 . Kinetic . | . . . Secondary 1 | . 1 . Self-Inflicted Damage . | . . . Shots . | . . . Rammed . | . . . Targets Rammed 1 | . 1 . Kicked 1 | . 1 . Crushed . | . . . Highest Temperature . | . . . Average Temperature . | . . . Received Heat Transfer 202 | . 202 . Siege Activations . | . . . Robots Corrupted . | . . . Combat Hostiles . | . . . Parts Fried 5 | . 5 . Impact Corruptions 16 | . 16 . Robots Melted . | . . . Combat Hostiles . | . . . Parts Melted . | . . . Heat Transferred . | . . . Parts Sabotaged . | . . . Parts Stolen . | . . . Parts Stripped . | . . . Power Chain Reactions . | . . . Missiles Intercepted . | . . . Alert | -11 -10 -10 ------- Run | Scr Mat Min Peak Influence 137 | . 137 44 Average Influence 58 | . 65 43 Maximum Alert Level . | . . . Low Security (%) 100 | 100 100 100 Level 1 . | . . . Level 2 . | . . . Level 3 . | . . . Level 4 . | . . . Level 5 . | . . . High Security . | . . . Max Security . | . . . Squads Dispatched 4 | . 4 . Investigation 3 | . 3 . Extermination . | . . . Reinforcement 1 | . 1 . Assault . | . . . Garrison . | . . . Intercept . | . . . Construction Impeded . | . . . Haulers Reinforced . | . . . Stealth | -11 -10 -10 --------- Run | Scr Mat Min Distress Signals 1 | . . 1 Communications Jammed . | . . . Distress Signals . | . . . Times Spotted 22 | . 17 5 Peak Tracking Total 5 | . 5 5 Tactical Retreats 5 | . 5 . Traps | -11 -10 -10 ------- Run | Scr Mat Min Traps Triggered 1 | . 1 . Indirectly . | . . . Trap Hack Attempts . | . . . Triggered . | . . . Disarmed . | . . . Reprogrammed . | . . . Reused . | . . . Traps Extracted . | . . . Installed . | . . . Triggered . | . . . Machines | -11 -10 -10 ---------- Run | Scr Mat Min Machines Disabled . | . . . Max in Single Turn . | . . . Machines Sabotaged . | . . . Garrisons Compromised . | . . . Overloaded Fab Kills . | . . . Fab Network Shutdowns . | . . . Hacking | -11 -10 -10 --------- Run | Scr Mat Min Machines Accessed 1 | . 1 . Terminals 1 | . 1 . Fabricators . | . . . Repair Stations . | . . . Recycling Units . | . . . Scanalyzers . | . . . Garrison Access . | . . . Total Hacks 1 | . 1 . Successful 1 | . 1 . Failed . | . . . Catastrophic . | . . . Database Lockouts . | . . . Manual 1 | . 1 . Terminals 1 | . 1 . Fabricators . | . . . Repair Stations . | . . . Recycling Units . | . . . Scanalyzers . | . . . Garrison Access . | . . . Terminal Hacks 1 | . 1 . Part Schematic 1 | . 1 . Fabricator Hacks . | . . . Repair Station Hacks . | . . . Recycling Unit Hacks . | . . . Scanalyzer . | . . . Garrison Access Hacks . | . . . Unauthorized Hacks . | . . . Terminals . | . . . Fabricators . | . . . Repair Stations . | . . . Recycling Units . | . . . Scanalyzers . | . . . Garrison Access . | . . . Data Cores Recovered . | . . . Used . | . . . Hacking Detections . | . . . Full Trace Events . | . . . Feedback Events . | . . . Feedback Blocked . | . . . Robot Schematics Acquired . | . . . Robots Built . | . . . Matter . | . . . Time . | . . . Total Robot Build Rating . | . . . Part Schematics Acquired 1 | . 1 . Parts Built . | . . . Matter . | . . . Time . | . . . Total Part Build Rating . | . . . Parts Repaired . | . . . Time . | . . . Parts Recycled . | . . . Recycled Matter . | . . . Retrieved Matter . | . . . Retrieved Components . | . . . Parts Scanalyzed . | . . . Part Schematics Acquired . | . . . Parts Damaged . | . . . Bothacking | -11 -10 -10 ------------ Run | Scr Mat Min Used RIF Installer . | . . . Robots Hacked . | . . . Non-combat . | . . . Combat . | . . . Robot Hacks Applied . | . . . Relay Couplers Released . | . . . Robots Rewired . | . . . Allies Hacked . | . . . Hacks Repelled . | . . . Allies | -11 -10 -10 -------- Run | Scr Mat Min Total Allies . | . . . Largest Group . | . . . Highest-Rated Group . | . . . Highest-Rated Ally . | . . . Total Orders . | . . . Ally Attacks . | . . . Total Damage . | . . . Kills . | . . . Allies Corrupted . | . . . Allies Melted . | . . . Intel | -11 -10 -10 ------- Run | Scr Mat Min Robot Analysis Total . | . . . Derelict Logs Recovered . | . . . Drone Launches . | . . . Drone Recoveries . | . . . Exploration | -11 -10 -10 ------------- Run | Scr Mat Min Turns Passed 936 | 53 735 148 Spaces Moved 464 | 45 303 116 Core 20 | 20 . . Treads . | . . . Legs 444 | 25 303 116 Wheels . | . . . Hover . | . . . Flight . | . . . Fastest Speed 50 | 50 120 120 Average Speed 117 | 95 120 120 Slowest Speed 150 | 150 120 120 Overloaded Moves . | . . . Propulsion Burnouts . | . . . Robots Hopped . | . . . Cave-ins Triggered . | . . . Exploration Rate (%) 18 | 3 28 25 Regions Visited 2 Branch Regions 1 Pre-discovered Areas . | . . . Known Exits Taken . | . . . Unknown Exits Taken 2 | 1 1 . Scrap Searched 1 | . . 1 Spaces Dug 5 | . 5 . Terrain Destroyed 5 | . 5 . Melee 5 | . 5 . Projectile . | . . . AOE . | . . . Actions | -11 -10 -10 --------- Run | Scr Mat Min Total 751 | 55 575 121 Wait 192 | 1 188 3 Move 462 | 44 302 116 Hop . | . . . Pick Up 17 | 5 12 . Fast Attach . | . . . Attach 13 | 5 8 . Detach 3 | . 3 . Swap 1 | . 1 . Drop 6 | . 6 . Fire 14 | . 14 . Melee 42 | . 40 2 Ram . | . . . Kick 1 | . 1 . Crush . | . . . Escape Stasis . | . . . Rewire . | . . . Trap . | . . . Miscellaneous . | . . . Route ------- -11/Scrapyard -10/Materials -10/Mines History --------- Turn | Location | Event 4 | -11/Scrapyard | Discovered new exit (range 16) 54 | -11/Scrapyard | Entered Materials 314 | -10/Materials | Build established: Mutant 421 | -10/Materials | Discovered new exit (range 8) 789 | -10/Materials | Entered Mines 831 | -10/Mines | Assembled infested the area 932 | -10/Mines | Core integrity fell below 50% 936 | -10/Mines | Core integrity fell below 20% 937 | -10/Mines | Destroyed by D-53 Grenadier with Mini Grenade Launcher Last Messages --------------- 00708_ A-02 Transporter system corrupted by crushing effect. 00715_ K-01 Serf collects debris. 00744_ U-05 Engineer builds a Wall. 00767_ Acquired 10 matter. [Achievement: Party Time] LOCATION=UNKNOWN GOAL=ESCAPE 00797_ Searching scrap... 00797_ Found 29 Matter. 00797_ Found ECM Suite. 00797_ Found Lgt. Assault Rifle. 00797_ Found Tractor Beam. 00831_ ALERT: Infestation in the mines, dispatching Demolisher response squad. 00916_ The unstable cave ceiling collapses. 00916_ as-90525 destroyed. 00918_ as-96836 destroyed. 00918_ as-05023 destroyed. 00929_ Lgt. Ion Engine destroyed. 00935_ The unstable cave ceiling collapses. Map ----- +----------------------------------------------------+ | | | | | | | | | | | | | | | | | | | | | ???????????????????????????????????????????????? | | ???????????????????????????????????????????????? | | ???????????????????????????????????????????????? | | ???????????????????????????????????????????????? | | ???????????????????####????????????????????????? | | ??????????????????## ###?????????????????????? | | ??????????????##?## ?????????????????????? | | ??????????#### # # # ########?????????????? | | ?????????## #?????????????? | | ?????????# # #?????????????? | | ?????????# d # #?????????????? | | ????????## #?????####????? | | ??????### # ## d #???## ###??? | | ?????## # ???# ##### ##?? | | ????## ##" # # ????# #?? | | ?#### ## #????????# @ #?? | | ## ## #????????# ## #??? | | ### ### #????????# # # ########### ##??? | | ####?####?# #??????? ######??????????####???? | | ??????????# ??????####???????????????????????? | | ??????????## ?????????????????????????????????? | | ???????????? ?????????????????????????????????? | | ???????????? ?????????????????????????????????? | | ???????????? #????????????????????????????????? | | ???????????? #????????????????????????????????? | | ???????????? ##????????????????????????????????? | | ????????????#??????????????????????????????????? | | ???????????????????????????????????????????????? | | ???????????????????????????????????????????????? | | ???????????????????????????????????????????????? | | ???????????????????????????????????????????????? | | ???????????????????????????????????????????????? | | ???????????????????????????????????????????????? | | ???????????????????????????????????????????????? | | ???????????????????????????????????????????????? | | ???????????????????????????????????????????????? | | ???????????????????????????????????????????????? | | ???????????????????????????????????????????????? | | ???????????????????????????????????????????????? | | ???????????????????????????????????????????????? | +----------------------------------------------------+ Best States ------------- Heat Dissipation 25 Energy Generation 10 Energy Capacity 125 Matter Stores 300 Matter Capacity 300 Sight Range 16 Terrain Scan Density 10 Propulsion Shielding 33 Evasion (%) 50 Item Schematics ----------------- Datajack | -10/Materials | Hacked Robot Schematics ------------------ None Fabricated ------------ Nothing Alien Tech Used ----------------- None Achievements -------------- Party Time Challenges ------------ None Game ------ Seed SystemImpulseMultirail Manual? 0 Play Time 00:09:45 Cumulative 11.0 hours Start 2020.05.21 @ 20:08:45 End 2020.05.21 @ 20:17:18 Sessions 1 Manual Loads 0 Difficulty Rogue Special Mode None Game No. 26 Rogue 10 Adventurer 16 Explorer 0 Win Type - Total 0 Types 0/0/0/0/0/0/0 Lore% 7 Gallery% 18 Achievement% 15 Wizard Run 0 Options --------- ASCII 0 Keyboard 1 Movement Arrows Keybinds 0 Fullscreen 2 Font 18/CogNarrow Map View 76x50 Tactical HUD 1 Map Filters NONE Filters NONE Steam 0 RUN: ca75a30a-7962-4bfe-a7a5-01a8577d3ee4